bitfinex/quotes_SOLUSD_20250402
["timestamp","ask_amount","ask_price","bid_price","bid_amount"]
[1743571013585,0.063,124.13,124.06,8.0645]
[1743571014296,0.063,124.13,124.06,16.1248]
[1743571016500,0.063,124.13,124.1,20.0]
[1743571016876,0.063,124.13,124.11,18.79181043]
[1743571017181,0.063,124.13,124.11,18.64964886]
[1743571017484,0.063,124.13,124.12,8.0567]
[1743571017899,0.063,124.13,124.12,26.70634886]
[1743571018683,0.063,124.13,124.12,18.64964886]
[1743571019293,0.063,124.13,124.11,18.64964886]
[1743571020906,0.063,124.13,124.11,26.70694886]
[1743571022301,0.063,124.13,124.11,18.64964886]
[1743571022507,0.063,124.13,124.1,131.6]
[1743571024105,0.063,124.13,124.1,111.6]
[1743571024498,0.063,124.13,124.07,18.79181043]
[1743571024703,0.063,124.13,124.08,40.52]
[1743571024902,0.063,124.13,124.12,20.0]
[1743571027811,0.063,124.13,124.12,28.0567]
[1743571028696,0.063,124.13,124.12,46.70634886]
[1743571028896,0.063,124.13,124.12,53.14164886]
[1743571032495,0.063,124.13,124.12,34.492]
[1743571032709,0.063,124.13,124.12,53.14164886]
[1743571035114,0.063,124.13,124.12,54.74384886]
[1743571037117,0.063,124.13,124.12,46.68714886]
[1743571037619,0.063,124.13,124.12,54.74384886]
[1743571041010,0.063,124.13,124.12,46.68714886]
[1743571041838,0.063,124.13,124.12,26.4353]
[1743571042127,0.063,124.13,124.12,20.0]
[1743571044815,0.063,124.13,124.1,90.96]
[1743571045018,0.063,124.13,124.1,80.9]
[1743571045611,0.063,124.13,124.1,88.9579]
[1743571046835,0.063,124.13,124.08,231.9]
[1743571047028,0.063,124.13,124.08,241.84]
[1743571047336,0.063,124.13,124.08,249.8992]
[1743571047925,0.063,124.13,124.08,231.9]
[1743571048113,0.063,124.13,124.07,80.9]
[1743571048114,25.28395194,124.12,124.06,0.03]
[1743571048308,25.34695194,124.13,124.06,0.03]
[1743571048514,0.063,124.13,124.06,0.03]
[1743571048718,0.063,124.13,124.07,18.64964886]
[1743571048932,0.063,124.13,124.07,38.64964886]
[1743571049118,0.063,124.13,124.08,0.14216157]
[1743571049529,0.063,124.13,124.1,20.0]
[1743571049718,0.063,124.13,124.1,29.94]
[1743571051734,0.063,124.13,124.1,9.94]
[1743571054440,0.063,124.13,124.07,339.52934886]
[1743571054743,0.063,124.13,124.07,349.36934886]
[1743571055738,0.063,124.13,124.07,241.76]
[1743571057033,0.063,124.13,124.07,249.8199]
[1743571057341,0.063,124.13,124.07,239.9799]
[1743571057643,0.063,124.13,124.08,9.78]
[1743571059946,0.063,124.13,124.08,17.8388]
[1743571060147,0.063,124.13,124.09,20.15234886]
[1743571060942,0.063,124.13,124.1,6.0777]
[1743571061950,0.063,124.13,124.1,14.1351]
[1743571062328,0.063,124.13,124.1,6.0777]
[1743571063035,0.063,124.13,124.1,14.1355]
[1743571063652,0.063,124.13,124.1,6.0777]
[1743571065835,0.063,124.13,124.09,9.68]
[1743571068260,0.063,124.13,124.07,24.2976]
[1743571071156,0.28432314,124.11,124.06,233.5743]
[1743571071359,25.56827508,124.11,124.06,0.03]
[1743571071542,0.28432314,124.09,124.06,0.03]
[1743571071936,25.56827508,124.09,124.06,0.03]
[1743571073648,0.28432314,124.1,124.06,0.03]
[1743571073850,0.28432314,124.08,124.06,0.03]
[1743571077764,0.28432314,124.09,124.06,0.03]
[1743571078744,0.063,124.13,124.06,9.43]
[1743571079155,0.28432314,124.12,124.06,9.43]
[1743571079363,25.56827508,124.12,124.06,9.43]
[1743571081275,0.28432314,124.12,124.06,17.4906]
[1743571082343,0.28432314,124.12,124.06,9.43]
[1743571082679,25.56827508,124.12,124.06,9.43]
[1743571082976,33.62527508,124.12,124.06,9.43]
[1743571083169,33.62527508,124.12,124.06,0.03]
[1743571083170,0.28432314,124.09,124.06,0.03]
[1743571083572,25.56827508,124.09,124.06,0.03]
[1743571084652,8.057,124.12,124.06,0.03]
[1743571084963,0.28432314,124.1,124.06,0.03]
[1743571085474,0.063,124.13,124.08,0.081]
[1743571085772,25.63127508,124.13,124.08,0.081]
[1743571087161,0.063,124.13,124.08,0.081]
[1743571087569,0.063,124.13,124.09,1.6428]
[1743571089677,25.34695194,124.13,124.08,0.081]
[1743571089848,25.28395194,124.11,124.08,0.081]
[1743571090973,25.28395194,124.1,124.08,0.081]
[1743571092956,33.62557508,124.11,124.08,0.081]
[1743571093159,25.28395194,124.11,124.08,0.081]
[1743571093371,33.68747508,124.13,124.08,0.081]
[1743571093765,0.063,124.13,124.08,9.461]
[1743571094970,33.68747508,124.13,124.08,0.081]
[1743571098266,0.063,124.13,124.08,20.081]
[1743571098471,0.063,124.13,124.09,8.1913]
[1743571100381,25.34695194,124.13,124.09,8.1913]
[1743571100765,0.063,124.13,124.09,8.1913]
[1743571102183,0.063,124.13,124.09,16.2499]
[1743571102877,0.063,124.13,124.09,8.1913]
[1743571104965,0.063,124.13,124.09,16.2497]
[1743571107965,0.063,124.13,124.09,8.1913]
[1743571109683,0.063,124.13,124.09,16.2498]
[1743571111002,0.063,124.13,124.1,38.79181043]
[1743571111182,0.063,124.13,124.12,38.79181043]
[1743571111882,0.063,124.13,124.12,46.84851043]
[1743571112412,0.063,124.13,124.12,26.70634886]
[1743571112697,0.063,124.19,124.12,46.88841043]
[1743571112878,0.063,124.19,124.13,0.14216157]
[1743571114175,25.34695194,124.19,124.12,8.0966]
[1743571114583,0.063,124.19,124.12,26.74624886]
[1743571114890,0.063,124.19,124.12,34.80284886]
[1743571115088,0.063,124.19,124.12,26.74624886]
[1743571115680,0.063,124.19,124.13,9.06]
[1743571116389,25.28395194,124.18,124.12,8.0966]
[1743571116598,25.28395194,124.16,124.09,238.5181]
[1743571116774,25.28395194,124.15,124.1,30.0]
[1743571116978,25.28395194,124.15,124.09,238.5181]
[1743571117578,25.28395194,124.14,124.09,238.5181]
[1743571117775,0.28432314,124.16,124.09,238.5181]
[1743571117998,36.20058379,124.17,124.09,238.5181]
[1743571118386,44.25438379,124.17,124.09,238.5181]
[1743571119383,44.25438379,124.17,124.09,246.5767]
[1743571119685,53.35539555,124.17,124.09,238.5181]
[1743571119886,53.35539555,124.17,124.09,246.5767]
[1743571120405,53.35539555,124.17,124.09,14.6567]
[1743571120906,25.30159555,124.17,124.09,14.6567]
[1743571121285,33.35529555,124.17,124.09,14.6567]
[1743571123305,0.063,124.19,124.12,1.5261]
[1743571123604,0.063,124.19,124.13,28.02964886]
[1743571123980,33.41679555,124.19,124.13,9.38]
[1743571124206,25.58591869,124.18,124.13,9.38]
[1743571124593,0.28432314,124.16,124.13,9.38]
[1743571124791,25.30159555,124.16,124.12,1.5261]
[1743571125206,25.30159555,124.16,124.09,25.6608]
[1743571125395,33.35609555,124.16,124.09,25.6608]
[1743571127209,8.0545,124.16,124.09,25.6608]
[1743571129597,25.30159555,124.18,124.1,18.64964886]
[1743571129801,33.35439555,124.18,124.1,18.64964886]
[1743571130205,25.30159555,124.17,124.1,18.64964886]
[1743571131613,33.35439555,124.18,124.11,8.0573]
[1743571131814,0.28432314,124.18,124.11,8.0573]
[1743571132013,0.063,124.19,124.12,18.64964886]
[1743571133711,8.1153,124.19,124.12,26.70574886]
[1743571134311,33.41689555,124.19,124.12,26.70574886]
[1743571135825,0.063,124.19,124.12,26.70574886]
[1743571140216,25.30159555,124.17,124.11,231.9]
[1743571140391,25.30159555,124.17,124.11,249.0572]
[1743571140594,25.30159555,124.18,124.11,249.0572]
[1743571141511,33.35469555,124.18,124.11,249.0572]
[1743571141707,24.30165828,124.19,124.12,18.64964886]
[1743571142818,24.30165828,124.19,124.12,26.70624886]
[1743571143219,0.28432314,124.18,124.11,241.0]
[1743571143402,16.18625828,124.17,124.11,240.96]
[1743571143797,16.47058142,124.18,124.11,240.96]
[1743571144312,16.47058142,124.18,124.11,9.06]
[1743571144725,16.18625828,124.17,124.11,9.06]
[1743571144916,8.0534,124.17,124.11,9.06]
[1743571145725,24.23965828,124.17,124.11,9.06]
[1743571145903,8.0534,124.17,124.11,9.06]
[1743571146105,24.23965828,124.17,124.11,9.06]
[1743571146306,8.0534,124.17,124.11,9.06]
[1743571146513,24.23965828,124.17,124.11,9.06]
[1743571146714,24.23965828,124.17,124.11,9.0]
[1743571148321,16.18625828,124.15,124.09,8.2226]
[1743571148726,0.28432314,124.16,124.09,8.2226]
[1743571148905,16.47058142,124.16,124.09,8.2226]
[1743571149305,24.52528142,124.16,124.09,25.241]
[1743571149721,24.52528142,124.16,124.09,17.1826]
[1743571150027,16.18625828,124.15,124.09,17.1826]
[1743571150627,16.18625828,124.15,124.09,8.2226]
[1743571150922,28.47432314,124.16,124.09,8.2226]
[1743571151127,16.18625828,124.14,124.09,8.2226]
[1743571151510,8.056,124.13,124.09,8.2226]
[1743571152719,8.0547,124.15,124.09,8.2226]
[1743571153007,8.0547,124.15,124.09,16.281]
[1743571153809,8.33842314,124.16,124.09,16.281]
[1743571154010,8.0528,124.18,124.1,18.64964886]
[1743571154417,24.23905828,124.18,124.1,18.64964886]
[1743571154831,24.23905828,124.18,124.11,8.0573]
[1743571156231,16.18625828,124.17,124.11,8.0573]
[1743571156410,16.18625828,124.17,124.09,8.2226]
[1743571156610,16.18625828,124.17,124.09,16.2809]
[1743571156825,16.18625828,124.16,124.09,16.2809]
[1743571157032,0.28432314,124.17,124.09,16.2809]
[1743571157236,16.18625828,124.16,124.09,16.2809]
[1743571157424,16.47058142,124.17,124.09,16.2809]
[1743571157745,16.18625828,124.17,124.1,18.64964886]
[1743571158937,24.24015828,124.17,124.1,26.70734886]
[1743571160618,24.23905828,124.18,124.1,26.70734886]
[1743571161335,24.23905828,124.18,124.1,26.73734886]
[1743571162135,0.063,124.17,124.1,26.73734886]
[1743571163348,16.24925828,124.17,124.11,8.8]
[1743571163723,24.30325828,124.17,124.11,8.8]
[1743571164732,24.52478142,124.16,124.11,8.8]
[1743571165955,24.24125828,124.15,124.11,8.8]
[1743571166933,16.18625828,124.14,124.1,0.03]
[1743571167948,24.24195828,124.14,124.1,0.03]
[1743571171274,16.18625828,124.13,124.1,0.03]
[1743571171972,16.18625828,124.12,124.1,0.03]
[1743571172552,16.18625828,124.13,124.1,0.03]
[1743571172852,0.28432314,124.14,124.1,0.03]
[1743571173181,24.24095828,124.15,124.1,0.03]
[1743571175565,16.18625828,124.14,124.1,0.03]
[1743571176565,8.0547,124.15,124.1,0.03]
[1743571176566,24.24095828,124.15,124.1,0.03]
[1743571176979,0.28432314,124.16,124.1,0.03]
[1743571176980,24.24065828,124.16,124.1,1.5922]
[1743571177550,16.18625828,124.15,124.1,1.5922]
[1743571179165,24.24065828,124.16,124.1,9.65]
[1743571179346,24.30295828,124.17,124.11,15.0182]
[1743571179955,16.18625828,124.16,124.11,15.0182]
[1743571180479,24.24095828,124.16,124.11,15.0182]
[1743571182066,8.0547,124.16,124.11,15.0182]
[1743571183274,16.18625828,124.16,124.11,15.0182]
[1743571183467,24.30265828,124.17,124.11,15.0182]
[1743571184976,16.18625828,124.16,124.11,15.0182]
[1743571185185,24.24085828,124.16,124.11,15.0182]
[1743571186286,16.18625828,124.15,124.11,6.3782]
[1743571186576,16.18625828,124.14,124.1,1.5922]
[1743571187275,8.0541,124.16,124.1,1.5922]
[1743571187470,16.18625828,124.15,124.1,1.5922]
[1743571188679,16.18625828,124.15,124.1,9.6502]
[1743571189072,16.18625828,124.15,124.1,1.5922]
[1743571190374,16.18625828,124.15,124.1,9.6501]
[1743571192377,16.18625828,124.16,124.1,9.6501]
[1743571193068,24.24035828,124.16,124.1,9.6501]
[1743571193460,24.24035828,124.16,124.1,18.1101]
[1743571194181,16.18625828,124.14,124.1,1.5922]
[1743571194353,16.18625828,124.13,124.1,0.03]
[1743571194778,24.24255828,124.13,124.1,0.03]
[1743571195156,16.18625828,124.11,124.1,0.03]
[1743571195661,16.47058142,124.11,124.1,0.03]
[1743571196767,24.52788142,124.11,124.1,0.03]
[1743571198877,0.28432314,124.11,124.1,0.03]
[1743571199273,24.52788142,124.11,124.1,0.03]
[1743571201483,43.17753028,124.11,124.1,0.03]
[1743571202975,24.52788142,124.11,124.1,0.03]
[1743571203778,43.17753028,124.11,124.1,0.03]
[1743571204386,80.98432314,124.1,124.09,0.03]
[1743571204589,97.17058142,124.1,124.09,0.03]
[1743571206492,188.6232634,124.1,124.08,0.081]
[1743571206674,81.75791454,124.09,124.08,0.081]
[1743571207073,18.933972,124.07,124.06,0.0001]
[1743571207375,38.933972,124.04,124.03,0.03]
[1743571207570,55.12023028,124.04,124.03,0.03]
[1743571208181,55.12023028,124.04,124.03,0.0001]
[1743571208497,18.933972,124.01,123.98,0.03]
[1743571208696,16.47058142,123.99,123.98,0.03]
[1743571209387,0.28432314,123.99,123.98,0.03]
[1743571209591,0.28432314,124.01,123.98,0.03]
[1743571209791,16.47058142,124.01,123.98,0.03]
[1743571209985,0.28432314,124.01,123.98,0.03]
[1743571210992,16.18625828,124.04,123.99,1.5083]
[1743571211192,16.18625828,124.03,123.99,1.5083]
[1743571211396,16.47058142,124.02,123.99,1.5083]
[1743571211779,25.35953264,124.03,123.99,1.5083]
[1743571211989,25.35953264,124.02,123.99,1.5083]
[1743571212194,0.28432314,124.04,123.99,1.5083]
[1743571212387,25.35953264,124.02,123.99,1.5083]
[1743571212587,25.35953264,124.01,123.99,1.5083]
[1743571212782,25.35953264,124.0,123.98,0.03]
[1743571212982,0.28432314,123.99,123.98,0.03]
[1743571213190,44.0091815,124.02,123.98,0.03]
[1743571213191,45.35953264,124.02,123.98,0.03]
[1743571213587,25.35953264,124.01,123.98,0.03]
[1743571214397,25.35953264,123.99,123.98,0.03]
[1743571214575,0.28432314,124.0,123.98,0.03]
[1743571214781,25.64385578,124.0,123.98,0.03]
[1743571217701,0.28432314,124.01,123.98,0.03]
[1743571218197,8.34622314,124.04,123.98,0.03]
[1743571218417,25.35953264,124.03,123.98,0.03]
[1743571218604,25.35953264,124.02,123.98,0.03]
[1743571219376,8.0619,124.04,123.98,0.03]
[1743571219377,25.64385578,124.01,123.98,0.03]
[1743571219576,8.34822314,124.01,123.98,0.03]
[1743571220094,0.28432314,124.01,123.98,0.03]
[1743571220688,25.35953264,124.03,123.98,0.03]
[1743571220901,0.28432314,124.03,123.98,0.03]
[1743571221202,25.64385578,124.03,123.98,0.03]
[1743571221804,8.0632,124.02,123.98,0.03]
[1743571222005,33.42273264,124.02,123.98,0.03]
[1743571223802,25.64385578,124.01,123.98,0.03]
[1743571224194,0.28432314,124.01,123.98,0.03]
[1743571224901,33.48553264,124.03,123.98,0.03]
[1743571225080,8.126,124.03,123.98,0.03]
[1743571225420,0.063,124.03,123.98,0.03]
[1743571225881,0.063,124.03,123.98,8.0958]
[1743571226606,0.063,124.03,123.98,0.03]
[1743571226808,0.34732314,124.03,123.98,0.03]
[1743571227386,25.70685578,124.03,123.98,0.03]
[1743571228108,33.42273264,124.02,123.98,0.03]
[1743571228300,25.64385578,124.01,123.98,0.03]
[1743571228486,0.28432314,124.01,123.98,0.03]
[1743571229010,25.64385578,124.01,123.98,0.03]
[1743571229610,0.28432314,124.01,123.98,0.03]
[1743571229799,33.42273264,124.02,123.98,0.03]
[1743571229983,8.0632,124.02,123.98,0.03]
[1743571230183,8.40992314,124.03,123.98,0.03]
[1743571231102,0.34732314,124.03,123.98,0.03]
[1743571231302,0.063,124.03,123.98,0.03]
[1743571235886,0.063,124.03,124.0,6.1055]
[1743571238612,0.063,124.03,124.0,7.7134]
[1743571238987,0.063,124.03,124.0,15.7779]
[1743571239203,0.063,124.03,124.0,7.7134]
[1743571243915,0.063,124.03,124.0,15.7778]
[1743571245917,0.063,124.03,124.0,7.7134]
[1743571246321,0.063,124.03,124.0,6.1055]
[1743571247719,0.063,124.03,123.98,0.03]
[1743571247925,16.50971622,124.02,123.98,0.03]
[1743571248114,24.57291622,124.02,123.98,0.03]
[1743571248824,8.34752314,124.02,123.98,0.03]
[1743571250222,24.57291622,124.02,123.98,0.03]
[1743571250525,16.22539308,124.01,123.98,0.03]
[1743571252033,24.57291622,124.02,123.98,0.03]
[1743571252616,8.34752314,124.02,123.98,0.03]
[1743571253913,8.1256,124.03,123.98,0.03]
[1743571254222,24.35099308,124.03,123.98,0.03]
[1743571255638,0.28432314,124.02,123.98,0.03]
[1743571255817,16.50971622,124.02,123.98,0.03]
[1743571256933,0.28432314,124.02,123.98,0.03]
[1743571257337,16.50971622,124.02,123.98,0.03]
[1743571257541,24.57331622,124.02,123.98,0.03]
[1743571257834,8.34792314,124.02,123.98,0.03]
[1743571258725,24.57331622,124.02,123.98,0.03]
[1743571259351,0.28432314,124.02,123.98,0.03]
[1743571259647,8.1258,124.03,123.98,0.03]
[1743571260536,0.063,124.03,123.98,0.03]
[1743571260740,0.063,124.03,123.99,8.0651]
[1743571269451,0.063,124.03,124.0,7.9752]
[1743571269663,0.063,124.03,124.01,8.0638]
[1743571275538,0.063,124.03,124.01,88.9638]
[1743571279271,0.063,124.03,124.01,80.9]
[1743571280242,0.063,124.03,124.0,7.9752]
[1743571280443,0.20516157,124.03,123.98,0.03]
[1743571280648,24.49345465,124.03,123.98,0.03]
[1743571281060,0.14216157,124.02,123.98,0.03]
[1743571282045,0.14216157,124.02,124.01,0.03]
[1743571283057,8.20536157,124.02,124.01,0.03]
[1743571283643,0.14216157,124.02,124.01,0.03]
[1743571283844,0.063,124.03,124.01,0.03]
[1743571288250,0.20516157,124.03,124.01,0.03]
[1743571288459,0.34732314,124.03,124.01,0.03]
[1743571289574,8.41012314,124.03,124.01,0.03]
[1743571290173,24.63551622,124.03,124.01,0.03]
[1743571292592,35.01720351,124.02,124.01,0.03]
[1743571293454,35.15936508,124.02,124.01,0.03]
[1743571293656,115.85936508,124.02,124.01,0.03]
[1743571294159,123.92256508,124.02,124.01,0.03]
[1743571294359,0.28432314,124.01,123.98,0.03]
[1743571294568,18.933972,123.99,123.98,0.03]
[1743571294770,0.28432314,123.99,123.98,0.03]
[1743571295776,0.28432314,124.01,123.98,0.03]
[1743571295965,0.063,124.03,123.98,0.03]
[1743571296166,0.34732314,124.03,123.98,0.03]
[1743571296378,0.20516157,124.03,123.98,0.03]
[1743571297170,0.063,124.03,123.98,0.03]
[1743571297973,8.1256,124.03,123.98,0.03]
[1743571298179,0.14216157,124.02,123.98,0.03]
[1743571299182,0.28432314,124.02,123.98,0.03]
[1743571299480,0.14216157,124.01,123.98,0.03]
[1743571301180,0.063,124.03,123.98,0.03]
[1743571302060,0.14216157,124.02,123.98,0.03]
[1743571302460,25.41783342,124.03,123.98,0.03]
[1743571302461,0.20516157,124.03,123.98,0.03]
[1743571303381,8.26796157,124.03,123.98,0.03]
[1743571304083,0.20516157,124.03,123.98,0.03]
[1743571304660,0.14216157,124.02,123.98,0.03]
[1743571305359,0.20516157,124.03,123.98,0.03]
[1743571305560,0.34732314,124.03,123.98,0.03]
[1743571307784,33.76475656,124.03,123.98,0.03]
[1743571309083,0.34732314,124.03,123.98,0.03]
[1743571312491,8.40992314,124.03,123.98,0.03]
[1743571314890,0.28432314,124.01,123.98,0.03]
[1743571316388,0.28432314,123.99,123.98,0.03]
[1743571318186,0.063,124.02,123.98,0.03]
[1743571318565,0.28432314,124.01,123.98,0.03]
[1743571319696,24.35721125,124.02,123.98,0.03]
[1743571319885,35.16488325,123.99,123.98,0.03]
[1743571321078,43.22998325,123.99,123.98,0.03]
[1743571321279,24.58033439,123.99,123.98,0.03]
[1743571321695,33.72132417,123.99,123.98,0.03]
[1743571322096,8.34942314,123.99,123.98,0.03]
[1743571322395,0.14216157,124.0,123.98,0.03]
[1743571322696,8.34882314,124.0,123.98,0.03]
[1743571324198,0.28432314,124.0,123.98,0.03]
[1743571324405,0.28432314,124.01,123.98,0.03]
[1743571324983,0.20516157,124.02,123.98,0.03]
[1743571325299,0.063,124.02,123.98,8.0958]
[1743571326598,0.063,124.02,123.98,0.03]
[1743571326821,0.28432314,124.01,123.98,0.03]
[1743571327020,25.43490103,124.02,123.98,0.03]
[1743571327304,0.063,124.02,123.98,0.03]
[1743571331887,25.43490103,124.02,123.98,0.03]
[1743571332809,0.28432314,124.01,123.98,0.03]
[1743571333104,25.65622417,124.01,123.98,0.03]
[1743571333810,0.28432314,124.01,123.98,0.03]
[1743571334182,8.34842314,124.01,123.98,0.03]
[1743571335211,33.72032417,124.01,123.98,0.03]
[1743571336207,25.65622417,123.99,123.98,0.03]
[1743571336414,44.30587303,123.99,123.98,0.03]
[1743571337590,25.65622417,123.99,123.98,0.03]
[1743571337790,0.28432314,124.0,123.98,0.03]
[1743571338497,8.34892314,124.0,123.98,0.03]
[1743571339409,0.28432314,124.0,123.98,0.03]
[1743571339615,0.14216157,124.01,123.98,0.03]
[1743571339789,0.20516157,124.02,123.98,0.03]
[1743571339997,0.34732314,124.02,123.98,0.03]
[1743571340495,0.34732314,124.02,123.98,8.0958]
[1743571342002,0.063,124.02,123.99,1.5978]
[1743571342716,0.063,124.02,124.0,6.6657]
[1743571344017,0.063,124.02,124.0,14.7299]
[1743571344995,0.063,124.02,124.0,22.5899]
[1743571348321,0.063,124.02,124.0,103.4899]
[1743571348504,0.063,124.03,124.02,20.0]
[1743571348824,0.063,124.03,124.02,107.1504]
[1743571349026,0.28432314,124.09,124.02,107.1504]
[1743571349514,0.28432314,124.09,124.03,8.0625]
[1743571349693,25.37190103,124.11,124.03,28.2189]
[1743571349892,0.28432314,124.1,124.03,28.2189]
[1743571350099,0.28432314,124.07,124.02,87.1504]
[1743571350627,25.65622417,124.07,124.02,87.1504]
[1743571350796,25.37190103,124.06,124.02,87.1504]
[1743571351001,25.65622417,124.05,124.0,80.9]
[1743571351201,25.37190103,124.04,124.0,80.9]
[1743571351616,8.34682314,124.03,123.99,6.129]
[1743571352213,8.062,124.04,123.99,6.129]
[1743571352597,33.71772417,124.05,123.99,14.194]
[1743571352897,8.34582314,124.05,123.99,14.194]
[1743571355022,0.28432314,124.07,123.99,52.87364886]
[1743571355327,0.28432314,124.07,123.99,153.93654886]
[1743571356018,25.65622417,124.07,123.99,153.93654886]
[1743571356218,25.65622417,124.07,123.99,113.77364886]
[1743571356427,0.28432314,124.05,123.99,95.124]
[1743571358198,8.0602,124.07,123.99,135.2869]
[1743571358402,8.059,124.09,124.01,20.0]
[1743571358604,0.28432314,124.09,124.02,14.2181]
[1743571358810,0.28432314,124.09,124.02,95.1181]
[1743571359212,0.28432314,124.09,124.04,8.0619]
[1743571359408,0.063,124.1,124.04,8.0619]
[1743571360006,0.28432314,124.09,124.04,8.0619]
[1743571360222,25.65622417,124.09,124.03,9.6747]
[1743571360722,25.37190103,124.08,124.03,1.6124]
[1743571361824,25.37190103,124.08,124.03,9.6748]
[1743571362327,33.43130103,124.08,124.03,9.6748]
[1743571362723,8.0594,124.08,124.03,9.6748]
[1743571366725,8.34312314,124.09,124.03,9.6748]
[1743571367330,8.34312314,124.09,124.03,9.7048]
[1743571368035,33.71502417,124.09,124.03,9.7048]
[1743571368330,25.37190103,124.07,124.03,1.6424]
[1743571368510,25.37190103,124.06,124.03,0.03]
[1743571368710,25.65622417,124.05,124.03,0.03]
[1743571368918,25.37190103,124.04,124.03,0.03]
[1743571369611,25.37190103,124.05,124.03,0.03]
[1743571370320,25.65622417,124.06,124.03,0.03]
[1743571370521,0.28432314,124.06,124.03,0.03]
[1743571371413,8.34492314,124.06,124.03,0.03]
[1743571371921,33.71682417,124.06,124.03,0.03]
[1743571372126,25.37190103,124.05,124.03,0.03]
[1743571372430,33.43360103,124.05,124.03,0.03]
[1743571372616,25.65622417,124.04,124.03,0.03]
[1743571374545,52.36777303,124.04,124.03,0.03]
[1743571380451,26.995872,124.04,124.03,0.03]
[1743571380627,8.34622314,124.04,124.03,0.03]
[1743571381029,33.71812417,124.04,124.03,0.03]
[1743571381327,8.34622314,124.04,124.03,0.03]
[1743571381846,33.71812417,124.04,124.03,0.03]
[1743571384249,52.36777303,124.04,124.03,0.03]
[1743571386027,52.36777303,124.04,123.99,0.03]
[1743571386028,99.34964886,124.03,123.99,0.03]
[1743571386224,44.30587303,124.0,123.99,0.03]
[1743571386645,99.633972,123.99,123.98,0.0001]
[1743571386825,38.933972,123.97,123.96,0.03]
[1743571387227,0.28432314,123.97,123.96,0.03]
[1743571387737,25.65622417,123.97,123.96,0.03]
[1743571390049,80.7,124.0,123.96,0.03]
[1743571390252,0.28432314,124.01,123.97,7.8392]
[1743571390427,80.7,124.02,123.97,7.8392]
[1743571392355,114.13510103,124.02,123.97,7.8392]
[1743571392653,106.07190103,124.02,123.97,15.9056]
[1743571392856,0.28432314,124.02,123.97,15.9056]
[1743571393953,0.28432314,124.02,123.97,7.8392]
[1743571394128,33.71992417,124.02,123.97,7.8392]
[1743571394957,33.71992417,124.02,123.97,15.9055]
[1743571395140,25.65622417,124.02,123.97,15.9055]
[1743571395537,0.28432314,124.02,123.97,15.9055]
[1743571395739,0.28432314,124.03,123.97,15.9055]
[1743571395940,0.28432314,124.03,123.97,23.6455]
[1743571396735,33.71892417,124.03,123.97,23.6455]
[1743571397046,8.34702314,124.03,123.97,23.6455]
[1743571398163,33.71892417,124.03,123.97,23.6455]
[1743571400163,0.28432314,124.03,123.97,23.6455]
[1743571400762,8.34692314,124.03,123.97,23.6455]
[1743571400961,33.71882417,124.03,123.97,23.6455]
[1743571401661,8.34692314,124.03,123.97,23.6455]
[1743571404052,8.34692314,124.03,123.97,23.6755]
[1743571404258,8.40992314,124.03,123.97,23.6755]
[1743571404566,0.063,124.03,123.97,23.6755]
[1743571404750,0.063,124.03,123.98,7.8411]
[1743571406266,0.063,124.03,123.99,8.0651]
[1743571406569,0.063,124.03,124.0,7.9264]
[1743571409147,0.063,124.03,124.0,15.9908]
[1743571418277,0.063,124.03,124.0,7.9264]
[1743571420875,0.063,124.03,124.0,15.9907]